bitfinex/quotes_BTCUSD_20251120
["timestamp","ask_amount","ask_price","bid_price","bid_amount"]
[1763654130724,0.25866459,90225.0,90224.0,0.00036429]
[1763654132430,0.28310459,90225.0,90224.0,0.00036429]
[1763654132767,0.25866459,90225.0,90224.0,0.00036429]
[1763654133173,0.02418654,90225.0,90224.0,0.00036429]
[1763654133371,0.24585459,90225.0,90224.0,0.00036429]
[1763654133584,0.2613025,90225.0,90224.0,0.00036429]
[1763654134120,0.26533805,90225.0,90224.0,0.00036429]
[1763654134321,0.24089805,90225.0,90224.0,0.00036429]
[1763654134545,0.26533805,90225.0,90224.0,0.00036429]
[1763654134954,0.36586137,90225.0,90224.0,0.00036429]
[1763654135402,0.36586137,90225.0,90205.0,0.025]
[1763654135403,0.22171474,90206.0,90205.0,0.025]
[1763654135603,0.27316778,90206.0,90205.0,0.025]
[1763654135812,0.29760778,90206.0,90205.0,0.025]
[1763654136026,0.29760778,90206.0,90180.0,0.06128893]
[1763654136027,0.29760778,90206.0,90180.0,0.0502]
[1763654136028,0.24891161,90191.0,90180.0,0.0502]
[1763654136238,0.2372462,90181.0,90180.0,0.0502]
[1763654136435,0.28585331,90181.0,90180.0,0.0502]
[1763654137215,0.28209331,90181.0,90180.0,0.0502]
[1763654137414,0.26141331,90181.0,90180.0,0.0502]
[1763654137708,0.25765331,90181.0,90180.0,0.0502]
[1763654137917,0.01108819,90186.0,90180.0,0.0502]
[1763654137918,0.01169,90196.0,90191.0,0.01108758]
[1763654138136,0.01169,90196.0,90194.0,0.22174337]
[1763654138383,0.00376,90207.0,90197.0,0.01108684]
[1763654138583,0.00376,90207.0,90201.0,0.01108635]
[1763654138584,0.00012593,90206.0,90201.0,0.01108635]
[1763654138732,0.00012593,90206.0,90204.0,0.2217192]
[1763654139149,0.00012593,90206.0,90205.0,0.323]
[1763654139298,0.00012593,90206.0,90205.0,0.48426743]
[1763654139511,0.00012593,90206.0,90205.0,0.44216494]
[1763654139708,0.00012593,90206.0,90205.0,0.323]
[1763654140226,0.00012593,90206.0,90204.0,0.22271791]
[1763654140577,0.00012593,90206.0,90204.0,0.22271853]
[1763654140908,0.22184226,90206.0,90204.0,0.001]
[1763654141356,0.22184226,90206.0,90204.0,0.002]
[1763654141576,0.00012593,90206.0,90204.0,0.002]
[1763654141806,0.00012593,90206.0,90204.0,0.001]
[1763654142029,0.00012593,90206.0,90203.0,0.0110861]
[1763654142268,0.00012593,90206.0,90204.0,0.001]
[1763654142510,0.00012593,90206.0,90205.0,0.001]
[1763654142757,0.22171719,90205.0,90204.0,0.001]
[1763654142985,0.00012593,90206.0,90205.0,0.22171719]
[1763654144676,0.00012593,90206.0,90205.0,0.54471719]
[1763654144886,0.00012593,90206.0,90205.0,0.65335009]
[1763654145529,0.00012593,90206.0,90205.0,0.65435009]
[1763654145732,0.00012593,90206.0,90205.0,0.65535009]
[1763654145938,0.00012593,90206.0,90205.0,0.4336329]
[1763654146130,0.00012593,90206.0,90205.0,0.65535009]
[1763654146705,0.00012593,90206.0,90205.0,0.70745258]
[1763654147356,0.01169,90252.0,90245.0,0.01108094]
[1763654147560,0.22162113,90245.0,90239.0,0.01108168]
[1763654147765,0.03878373,90244.0,90231.0,0.01108266]
[1763654147965,0.03878373,90244.0,90234.0,0.01108229]
[1763654148160,0.02770267,90244.0,90229.0,0.01108291]
[1763654148385,0.22162689,90242.0,90233.0,0.01108241]
[1763654148609,0.3512,90251.0,90239.0,0.01108168]
[1763654148610,0.02444,90251.0,90239.0,0.01108168]
[1763654148780,0.02770052,90251.0,90243.0,0.01108119]
[1763654148982,0.2216131,90248.0,90245.0,0.01108094]
[1763654149161,0.2216131,90248.0,90234.0,0.2216437]
[1763654149162,0.22161401,90247.0,90234.0,0.01108229]
[1763654149366,0.22161401,90247.0,90231.0,0.01652028]
[1763654149367,0.02770175,90247.0,90231.0,0.02760294]
[1763654149598,0.0110807,90247.0,90231.0,0.24925589]
[1763654149800,0.22162481,90243.0,90239.0,0.22163253]
[1763654150006,0.22162708,90242.0,90238.0,0.0110818]
[1763654150227,0.22161709,90246.0,90243.0,0.01108119]
[1763654150461,0.22161709,90246.0,90241.0,0.22162874]
[1763654150462,0.22161709,90246.0,90242.0,0.01108131]
[1763654150665,0.22161709,90246.0,90243.0,0.01108119]
[1763654150870,0.01181616,90252.0,90249.0,0.01108045]
[1763654150871,0.22160419,90251.0,90249.0,0.01108045]
[1763654151212,0.22161489,90247.0,90243.0,0.23270402]
[1763654151421,0.00376,90251.0,90226.0,0.01108327]
[1763654151422,0.0148402,90251.0,90226.0,0.01108327]
[1763654151557,0.01108131,90242.0,90233.0,0.01652028]
[1763654151756,0.22161867,90246.0,90233.0,0.01652028]
[1763654151959,0.06322116,90250.0,90233.0,0.01652028]
[1763654151960,0.03552033,90250.0,90233.0,0.01652028]
[1763654152143,0.23269471,90247.0,90236.0,0.01108205]
[1763654152342,0.22162787,90242.0,90237.0,0.0171669]
[1763654152549,0.22162529,90243.0,90237.0,0.23271974]
[1763654152797,0.22163193,90240.0,90237.0,0.01108192]
[1763654153001,0.22163227,90240.0,90237.0,0.01108192]
[1763654153212,0.01108094,90245.0,90233.0,0.01652028]
[1763654153378,0.01108082,90246.0,90234.0,0.01652028]
[1763654153589,0.02770236,90245.0,90234.0,0.01652028]
[1763654153947,0.01108168,90239.0,90224.0,0.22166991]
[1763654154119,0.22164839,90233.0,90232.0,0.01652028]
[1763654154616,0.22163463,90239.0,90232.0,0.02760282]
[1763654154837,0.01557616,90252.0,90239.0,0.01108168]
[1763654154981,0.01557616,90252.0,90240.0,0.22163118]
[1763654154982,0.22162298,90244.0,90240.0,0.22163118]
[1763654155181,0.22162161,90244.0,90240.0,0.22163094]
[1763654155383,0.22162612,90243.0,90241.0,0.04765202]
[1763654155590,0.01108217,90235.0,90199.0,0.07956866]
[1763654155788,0.01108303,90228.0,90212.0,0.01108499]
[1763654155993,0.01108303,90228.0,90215.0,0.01108463]
[1763654155994,0.22167995,90221.0,90215.0,0.01108463]
[1763654156192,0.01108315,90227.0,90215.0,0.01108463]
[1763654156392,0.22167865,90221.0,90217.0,0.02760466]
[1763654156616,0.01108278,90230.0,90218.0,0.06261746]
[1763654156926,0.01108291,90229.0,90220.0,0.01108401]
[1763654157159,0.2216741,90223.0,90221.0,0.01108389]
[1763654157336,0.2216685,90225.0,90222.0,0.23275919]
[1763654157536,0.22166407,90227.0,90224.0,0.01108352]
[1763654157886,0.22166421,90227.0,90225.0,0.0110834]
[1763654158005,0.22165861,90229.0,90227.0,0.01108315]
[1763654158209,0.22166861,90225.0,90223.0,0.01108364]
[1763654158518,0.22167121,90224.0,90223.0,0.04824603]
[1763654158943,0.22167121,90224.0,90220.0,0.00042037]
[1763654159143,0.01169,90231.0,90221.0,0.01108389]
[1763654159307,0.22167127,90224.0,90221.0,0.23276151]
[1763654159507,0.01108315,90227.0,90220.0,0.00042037]
[1763654159708,0.22167787,90221.0,90220.0,0.00042037]
[1763654159913,0.22167787,90221.0,90220.0,0.07194702]
[1763654160213,0.22166674,90226.0,90222.0,0.23275873]
[1763654160457,0.01107947,90257.0,90236.0,0.01108205]
[1763654160664,0.02444,90251.0,90230.0,0.5763713]
[1763654160907,0.02444,90251.0,90220.0,0.07194702]
[1763654160908,0.5763713,90270.0,90253.0,0.22159928]
[1763654160909,0.02444,90270.0,90253.0,0.22159928]
[1763654161047,0.02444,90270.0,90237.0,0.01652028]
[1763654161048,0.00376,90263.0,90243.0,0.323]
[1763654161391,0.00376,90263.0,90237.0,0.0276022]
[1763654161392,0.22163394,90239.0,90237.0,0.01652028]
[1763654161599,0.01547,90238.0,90222.0,0.1474]
[1763654161765,0.01547,90238.0,90221.0,0.0075707]
[1763654161766,0.23269951,90246.0,90236.0,0.01108205]
[1763654161944,0.22164652,90234.0,90231.0,0.01108266]
[1763654162147,0.01108119,90243.0,90227.0,0.01108315]
[1763654162148,0.01108156,90240.0,90227.0,0.01108315]
[1763654162352,0.22164113,90236.0,90230.0,0.01652028]
[1763654162755,0.01157,90235.0,90227.0,0.02514143]
[1763654162963,0.22164594,90234.0,90223.0,0.01108364]
[1763654163163,0.01157,90235.0,90229.0,0.23274002]
[1763654163363,0.00376,90240.0,90234.0,0.01108229]
[1763654163563,0.02453158,90240.0,90234.0,0.01108229]
[1763654163767,0.02453158,90240.0,90236.0,0.01108205]
[1763654163987,0.2216349,90239.0,90236.0,0.02659773]
[1763654164189,0.02770451,90238.0,90228.0,0.01652028]
[1763654164575,0.01108278,90230.0,90219.0,0.01108413]
[1763654164765,0.01108278,90230.0,90227.0,0.001]
[1763654164766,0.22165822,90229.0,90227.0,0.001]
[1763654164984,0.01651,90228.0,90227.0,0.001]
[1763654165368,0.00376,90228.0,90227.0,0.001]
[1763654165578,0.00376,90238.0,90235.0,0.23272496]
[1763654165793,0.00012614,90246.0,90239.0,0.01108168]
[1763654165986,0.00376,90242.0,90236.0,0.22164098]
[1763654166190,0.00376,90242.0,90239.0,0.01108168]
[1763654166402,0.00376,90242.0,90240.0,0.22163068]
[1763654166580,0.22164567,90235.0,90230.0,0.2327377]
[1763654166780,0.01108192,90237.0,90228.0,0.22166043]
[1763654166970,0.22167666,90222.0,90218.0,0.22168447]
[1763654167188,0.22167816,90221.0,90219.0,0.01108413]
[1763654167391,0.22167816,90221.0,90213.0,0.56121604]
[1763654167393,0.01108647,90200.0,90197.0,0.07980736]
[1763654167570,0.0110861,90203.0,90197.0,0.07980736]
[1763654167571,0.01157,90199.0,90197.0,0.0002387]
[1763654167783,0.00376,90203.0,90198.0,0.01652028]
[1763654168017,0.00376,90203.0,90197.0,0.0002387]
[1763654168232,0.00376,90203.0,90198.0,0.08096062]
[1763654168436,0.01157,90214.0,90208.0,0.01108549]
[1763654168719,0.01157,90214.0,90206.0,0.22171458]
[1763654168720,0.00376,90213.0,90206.0,0.01108573]
[1763654168955,0.22168987,90217.0,90198.0,0.22215298]
[1763654168956,0.01108229,90234.0,90221.0,0.23276126]
[1763654169093,0.2216796,90221.0,90216.0,0.23277241]
[1763654169435,0.01108291,90229.0,90216.0,0.23277241]
[1763654169436,0.00376,90220.0,90218.0,0.22168525]
[1763654169673,0.01108143,90241.0,90221.0,0.01108389]
[1763654169810,0.01652028,90251.0,90217.0,0.0493157]
[1763654169811,0.22166577,90226.0,90217.0,0.0493157]
[1763654170023,0.22167063,90224.0,90218.0,0.01108426]
[1763654170245,0.22166577,90226.0,90218.0,0.01108426]
[1763654170443,0.22167311,90223.0,90220.0,0.01108401]
[1763654170705,0.22167311,90223.0,90219.0,0.05646427]
[1763654170706,0.01157,90236.0,90227.0,0.01108315]
[1763654170877,0.23273339,90232.0,90225.0,0.0110834]
[1763654171081,0.22166313,90227.0,90220.0,0.01108401]
[1763654171256,0.22167136,90224.0,90220.0,0.01108401]
[1763654171421,0.00376,90226.0,90223.0,0.23275632]
[1763654171622,0.00376,90226.0,90220.0,0.01108401]
[1763654171826,0.00376,90226.0,90220.0,0.00042037]
[1763654172022,0.22167644,90222.0,90220.0,0.00042037]
[1763654172890,0.22167581,90224.0,90221.0,0.03662051]
[1763654173083,0.22167581,90224.0,90220.0,0.22209987]
[1763654173084,0.22167542,90222.0,90220.0,0.00042037]
[1763654173354,0.01108278,90230.0,90220.0,0.00042037]
[1763654173355,0.01108254,90232.0,90220.0,0.00042037]
[1763654173356,0.22162225,90244.0,90237.0,0.22163771]
[1763654173510,0.01157,90248.0,90245.0,0.23269867]
[1763654173668,0.00376,90248.0,90247.0,0.0110807]
[1763654174335,0.00376,90248.0,90237.0,0.01108192]
[1763654174463,0.01108119,90243.0,90226.0,0.01108327]
[1763654174673,0.01108119,90243.0,90230.0,0.01108278]
[1763654174674,0.03544119,90243.0,90230.0,0.01108278]
[1763654174869,0.22163761,90238.0,90234.0,0.01108229]
[1763654175077,0.22165082,90233.0,90231.0,0.03562492]
[1763654175278,0.01108143,90241.0,90217.0,0.07956866]
[1763654175279,0.2216772,90222.0,90217.0,0.07956866]
[1763654175478,0.2216772,90222.0,90218.0,0.01108426]
[1763654175728,0.2216772,90222.0,90214.0,0.01108475]
[1763654175931,0.02436,90233.0,90219.0,0.01108413]
[1763654176079,0.02770635,90232.0,90216.0,0.01652028]
[1763654176280,0.02770635,90232.0,90221.0,0.01108389]
[1763654176281,0.22166843,90225.0,90221.0,0.01108389]
[1763654176519,0.00376,90235.0,90222.0,0.22167509]
[1763654176859,0.00376,90234.0,90225.0,0.0110834]
[1763654177063,0.22164712,90234.0,90228.0,0.01108303]
[1763654177203,0.00376,90233.0,90231.0,0.22165245]
[1763654177405,0.01108106,90244.0,90234.0,0.01108229]
[1763654177605,0.01108057,90248.0,90234.0,0.01108229]
[1763654177606,0.02770175,90247.0,90234.0,0.01108229]
[1763654177807,0.02770175,90247.0,90241.0,0.23270942]
[1763654178006,0.22161591,90247.0,90243.0,0.23270481]
[1763654178194,0.01157,90252.0,90249.0,0.01108045]
[1763654178399,0.00376,90251.0,90247.0,0.23269399]
[1763654178600,0.2530651,90251.0,90248.0,0.23269113]
[1763654178822,0.00376,90251.0,90243.0,0.01108119]
[1763654179018,0.00376,90251.0,90217.0,0.54247007]
[1763654179019,0.01108082,90246.0,90233.0,0.05974134]
[1763654179379,0.22163447,90239.0,90234.0,0.01108229]
[1763654179548,0.22164635,90235.0,90232.0,0.05974134]
[1763654179790,0.22161911,90245.0,90233.0,0.22164839]
[1763654179989,0.01108119,90243.0,90234.0,0.05417382]
[1763654180124,0.2216362,90238.0,90234.0,0.05417382]
[1763654180324,0.22163546,90239.0,90236.0,0.01108205]
[1763654180524,0.22162629,90242.0,90238.0,0.0110818]
[1763654180730,0.22163182,90240.0,90237.0,0.01108192]
[1763654180959,0.22163182,90240.0,90236.0,0.23272274]
[1763654181120,0.01108119,90243.0,90237.0,0.05583147]
[1763654181315,0.01120696,90246.0,90228.0,0.01108303]
[1763654181316,0.01108254,90232.0,90228.0,0.05974134]
[1763654181559,0.01108229,90234.0,90219.0,0.23652605]
[1763654181560,0.22166074,90228.0,90226.0,0.05974134]
[1763654181866,0.22166068,90228.0,90224.0,0.05974134]
[1763654182165,0.01108278,90230.0,90221.0,0.05974134]
[1763654182381,0.22165983,90229.0,90226.0,0.23274881]
[1763654182540,0.00376,90233.0,90229.0,0.01108291]
[1763654182748,0.02436,90232.0,90199.0,0.323]
[1763654183068,0.02436,90232.0,90191.0,0.1387389]
[1763654183069,0.23818296,90223.0,90211.0,0.05974134]
[1763654183271,0.23818296,90223.0,90215.0,0.23277723]
[1763654183451,0.23818296,90223.0,90219.0,0.23276529]
[1763654183658,0.23818296,90223.0,90219.0,0.01108413]
[1763654184060,0.22166804,90227.0,90222.0,0.27167542]
[1763654184261,0.22166138,90228.0,90225.0,0.0110834]
[1763654184468,0.03556696,90246.0,90233.0,0.01108241]
[1763654184677,0.01108156,90240.0,90225.0,0.0492292]
[1763654184929,0.22165625,90230.0,90226.0,0.01108327]
[1763654185085,0.22165633,90230.0,90226.0,0.01108327]
[1763654185425,0.22165633,90230.0,90225.0,0.03270892]
[1763654185624,0.00376,90232.0,90222.0,0.05]
[1763654185625,0.22166559,90226.0,90222.0,0.05]
[1763654185802,0.22167296,90223.0,90222.0,0.05]
[1763654186565,0.22166087,90228.0,90222.0,0.05]
[1763654186735,0.22166736,90226.0,90225.0,0.001]
[1763654186881,0.22166821,90225.0,90223.0,0.01108364]
[1763654187084,0.22166313,90227.0,90223.0,0.01108364]
[1763654187085,0.22166374,90227.0,90225.0,0.0110834]
[1763654187342,0.00376,90226.0,90222.0,0.05]
[1763654187545,0.2216722,90224.0,90222.0,0.05]
[1763654188272,0.2216722,90224.0,90197.0,0.0002387]
[1763654188273,0.22169395,90215.0,90197.0,0.0002387]
[1763654188629,0.05195364,90223.0,90197.0,0.0002387]
[1763654188630,0.22170694,90210.0,90206.0,0.01108573]
[1763654188829,0.22172269,90203.0,90198.0,0.01108672]
[1763654189036,0.22172067,90204.0,90201.0,0.01108635]
[1763654189207,0.00376,90208.0,90202.0,0.01108622]
[1763654189430,0.00376,90208.0,90205.0,0.01108585]
[1763654189716,0.01157,90214.0,90211.0,0.23278753]
[1763654189928,0.22545787,90213.0,90212.0,0.04766716]
[1763654190274,0.24072787,90213.0,90212.0,0.04766716]
[1763654190523,0.24072787,90213.0,90202.0,0.00042037]
[1763654190524,0.22171689,90206.0,90202.0,0.00042037]
[1763654190690,0.01108524,90210.0,90202.0,0.00042037]
[1763654190894,0.23699211,90203.0,90202.0,0.00042037]
[1763654191228,0.22172211,90203.0,90202.0,0.00042037]
[1763654191464,0.22172211,90203.0,90202.0,0.04870316]
[1763654191605,0.22172211,90203.0,90202.0,0.00042037]
[1763654192174,0.26133211,90203.0,90202.0,0.00042037]
[1763654192385,0.58433211,90203.0,90202.0,0.00042037]
[1763654192569,0.58433211,90203.0,90197.0,0.0002387]
[1763654192570,0.5447344,90198.0,90197.0,0.0002387]
[1763654192769,0.70016077,90198.0,90197.0,0.0002387]
[1763654192974,0.61762505,90198.0,90197.0,0.0002387]
[1763654193376,0.61386505,90198.0,90197.0,0.0002387]
[1763654193583,0.61762505,90198.0,90197.0,0.0002387]
[1763654194724,0.59734477,90198.0,90197.0,0.0002387]
[1763654194950,0.60110477,90198.0,90197.0,0.0002387]
[1763654195503,0.71026971,90198.0,90197.0,0.0002387]
[1763654196779,0.7623722,90198.0,90197.0,0.0002387]
[1763654197609,0.7586122,90198.0,90197.0,0.0002387]
[1763654197813,0.70650971,90198.0,90197.0,0.0002387]
[1763654198015,0.48477531,90198.0,90197.0,0.0002387]
[1763654198214,0.05637037,90198.0,90197.0,0.0002387]
[1763654199633,0.03280037,90198.0,90197.0,0.0002387]
[1763654199846,0.02904037,90198.0,90197.0,0.0002387]
[1763654200054,0.05637037,90198.0,90197.0,0.0002387]
[1763654200552,0.08408717,90198.0,90197.0,0.0002387]
[1763654202972,0.1861642,90198.0,90197.0,0.0002387]
[1763654203202,0.30582157,90198.0,90197.0,0.0002387]
[1763654203390,0.30582157,90198.0,90197.0,0.01127709]
[1763654203391,0.60110477,90198.0,90197.0,0.01127709]
[1763654205310,0.59734477,90198.0,90197.0,0.01127709]
[1763654205517,0.71126971,90198.0,90197.0,0.01127709]
[1763654206212,0.59734477,90198.0,90197.0,0.01127709]
[1763654206414,0.60110477,90198.0,90197.0,0.01127709]
[1763654206621,0.60210477,90198.0,90197.0,0.01127709]
[1763654207201,0.60110477,90198.0,90197.0,0.01127709]
[1763654208443,0.27434477,90198.0,90197.0,0.01127709]
[1763654208642,0.27810477,90198.0,90197.0,0.01127709]
[1763654208848,0.27910477,90198.0,90197.0,0.01127709]
[1763654209262,0.03380037,90198.0,90197.0,0.01127709]
[1763654209468,0.06151717,90198.0,90197.0,0.01127709]
[1763654209651,0.08508717,90198.0,90197.0,0.01127709]
[1763654209795,0.05775717,90198.0,90197.0,0.01127709]
[1763654210006,0.06151717,90198.0,90197.0,0.01127709]
[1763654210411,0.09974956,90198.0,90152.0,0.05210249]
[1763654210612,0.09974956,90198.0,90143.0,0.52313727]
[1763654210613,0.02862,90181.0,90169.0,0.01109028]
[1763654210869,0.03238,90181.0,90168.0,0.0111804]
[1763654211027,0.05595,90181.0,90168.0,9e-05]
[1763654211461,0.07247028,90181.0,90168.0,9e-05]
[1763654213147,0.12457277,90181.0,90168.0,9e-05]
[1763654213386,0.15229479,90181.0,90168.0,9e-05]
[1763654214406,0.54480572,90169.0,90168.0,9e-05]
[1763654214579,0.70181394,90169.0,90168.0,9e-05]
[1763654215284,0.60075572,90169.0,90168.0,9e-05]
[1763654215812,0.60117583,90169.0,90168.0,9e-05]
[1763654216135,0.60217583,90169.0,90168.0,9e-05]
[1763654216412,0.62263581,90169.0,90168.0,9e-05]
[1763654216844,0.62163581,90169.0,90168.0,9e-05]
[1763654216963,0.66914263,90169.0,90168.0,9e-05]
[1763654217161,0.72224512,90169.0,90168.0,9e-05]
[1763654217615,0.72324512,90169.0,90168.0,9e-05]
[1763654217859,0.62363581,90169.0,90168.0,9e-05]
[1763654218507,0.6747383,90169.0,90168.0,9e-05]
[1763654218664,0.6737383,90169.0,90168.0,9e-05]
[1763654218875,0.6747383,90169.0,90168.0,9e-05]
[1763654219071,0.6709783,90169.0,90168.0,9e-05]
[1763654219282,0.61787581,90169.0,90168.0,9e-05]
[1763654219624,0.62163581,90169.0,90168.0,9e-05]
[1763654219763,0.62263581,90169.0,90168.0,9e-05]
[1763654220167,0.61887581,90169.0,90168.0,9e-05]
[1763654220486,0.61787581,90169.0,90168.0,9e-05]
[1763654220706,0.04950009,90169.0,90168.0,9e-05]
[1763654220947,0.23843583,90169.0,90168.0,9e-05]
[1763654221170,0.01663011,90169.0,90168.0,9e-05]
[1763654221376,0.05637011,90169.0,90168.0,9e-05]
[1763654221577,0.05737011,90169.0,90168.0,0.0009556]
[1763654221816,0.02914582,90169.0,90168.0,0.0009556]
[1763654222023,0.00042011,90169.0,90168.0,0.0397524]
[1763654223013,0.00042011,90169.0,90168.0,0.01747588]
[1763654224478,0.22222583,90169.0,90168.0,0.01747588]
[1763654224673,0.00042011,90169.0,90168.0,0.0009556]
[1763654225675,0.01108758,90191.0,90168.0,0.0009556]
[1763654225677,0.01108536,90209.0,90189.0,0.01108782]
[1763654226060,0.01191,90190.0,90189.0,0.00012593]
[1763654226172,0.22171474,90206.0,90190.0,0.02218905]
[1763654226389,0.02771464,90205.0,90197.0,0.01108684]
[1763654226589,0.02771464,90205.0,90189.0,0.00012593]
[1763654226590,0.22172875,90201.0,90194.0,0.01108721]
[1763654226833,0.22173579,90198.0,90191.0,0.01108758]
[1763654227041,0.22173339,90199.0,90196.0,0.01108696]
[1763654227286,0.22173339,90199.0,90189.0,0.00012593]
[1763654227287,0.01191,90200.0,90189.0,0.00012593]
[1763654227456,0.01191,90200.0,90195.0,0.01108708]
[1763654227790,0.01191,90200.0,90189.0,0.00012593]
[1763654227791,0.22175407,90190.0,90189.0,0.00012593]
[1763654227965,0.23738407,90190.0,90189.0,0.00012593]
[1763654228165,0.26096407,90190.0,90189.0,0.00012593]
[1763654228725,0.26096407,90190.0,90189.0,0.00112593]
[1763654229288,0.26572407,90190.0,90189.0,0.00112593]
[1763654229467,0.26572407,90190.0,90189.0,0.00012593]
[1763654229672,0.26196407,90190.0,90189.0,0.00012593]
[1763654229871,0.26472407,90190.0,90189.0,0.00012593]
[1763654231181,0.26472407,90190.0,90189.0,0.00036466]
[1763654231380,0.26572407,90190.0,90189.0,0.00036466]
[1763654231730,0.26472407,90190.0,90189.0,0.00036466]
[1763654232610,0.58772407,90190.0,90189.0,0.00036466]
[1763654232821,0.58772407,90190.0,90189.0,4.66e-06]
[1763654232822,0.63606656,90190.0,90189.0,4.66e-06]
[1763654233110,0.63606656,90190.0,90146.0,0.43295412]
[1763654233111,0.22180572,90169.0,90146.0,0.2]
[1763654233423,0.26975198,90169.0,90147.0,0.01109299]
[1763654233627,0.29333198,90169.0,90168.0,0.00071684]
[1763654234376,0.2730517,90169.0,90168.0,0.00071684]
[1763654234772,0.29333198,90169.0,90168.0,0.00071684]
[1763654235816,0.2730517,90169.0,90168.0,0.00071684]
[1763654236029,0.2768117,90169.0,90168.0,0.00071684]
[1763654236234,0.29333198,90169.0,90168.0,0.00071684]
[1763654236787,0.67899367,90169.0,90168.0,0.00071684]
[1763654237430,0.61633198,90169.0,90168.0,0.00071684]
[1763654238240,0.61733198,90169.0,90168.0,0.00071684]
[1763654238974,0.61633198,90169.0,90168.0,0.00071684]
[1763654239314,0.61733198,90169.0,90168.0,0.00071684]
[1763654239575,0.61833198,90169.0,90168.0,0.00071684]
[1763654239787,0.61733198,90169.0,90168.0,0.00071684]
[1763654240522,0.72649692,90169.0,90168.0,0.00071684]
[1763654240738,0.48915341,90169.0,90168.0,0.00071684]
[1763654240959,0.001,90169.0,90168.0,0.00071684]
[1763654241165,0.01191,90192.0,90186.0,0.01108819]
[1763654241392,0.02358,90202.0,90187.0,0.01108807]
[1763654241393,0.03466622,90202.0,90187.0,0.01108807]
[1763654241597,0.03466622,90202.0,90168.0,9e-05]
[1763654241598,0.01108708,90195.0,90186.0,0.01108819]
[1763654241798,0.01191,90197.0,90183.0,0.01108856]
[1763654241799,0.02299684,90197.0,90183.0,0.01108856]
[1763654242011,0.01191,90197.0,90191.0,0.01108758]
[1763654242219,0.01191,90197.0,90193.0,0.01108733]
[1763654242429,0.00388612,90202.0,90200.0,0.22172831]
[1763654242661,0.00012612,90202.0,90200.0,0.22172831]
[1763654242873,0.00012612,90202.0,90195.0,0.22173686]
[1763654242874,0.01191,90241.0,90201.0,0.323]
[1763654243079,0.02299758,90252.0,90201.0,0.323]
[1763654243080,0.00202356,90237.0,90236.0,0.22164103]
[1763654243291,0.00202356,90237.0,90236.0,0.06871111]
[1763654243489,0.02873548,90237.0,90213.0,0.01100869]
[1763654243635,0.02873548,90237.0,90221.0,0.01108389]
[1763654243636,0.22164348,90235.0,90221.0,0.01108389]
[1763654243833,0.01765356,90237.0,90216.0,0.01652028]
[1763654243834,0.22166621,90226.0,90216.0,0.01652028]
[1763654244062,0.22166364,90227.0,90220.0,0.01108401]
[1763654244263,0.00202356,90237.0,90221.0,0.06055458]
[1763654244471,0.00202356,90237.0,90228.0,0.01108303]
[1763654244668,0.00202356,90237.0,90228.0,0.01100869]
[1763654244919,0.00202356,90237.0,90230.0,0.02760306]
[1763654245121,0.00202356,90237.0,90235.0,0.22164278]
[1763654245360,0.00202356,90237.0,90236.0,0.35856097]
[1763654246459,0.00202356,90237.0,90236.0,0.03556097]
[1763654246817,0.00202356,90237.0,90234.0,0.33408229]
[1763654247041,0.00202356,90237.0,90235.0,0.01652028]
[1763654247249,0.00202356,90237.0,90236.0,0.22164103]
[1763654248428,0.00202356,90237.0,90236.0,0.25127607]
[1763654248568,0.4429561,90303.0,90236.0,0.25127607]
[1763654248569,0.4429561,90303.0,90255.0,0.01107971]
[1763654248570,0.00376,90272.0,90255.0,0.01107971]
[1763654248766,0.00376,90272.0,90255.0,0.01100869]
[1763654248767,0.22156329,90268.0,90255.0,0.01100869]
[1763654248947,0.22155509,90271.0,90256.0,0.06217159]
[1763654249186,0.02769469,90270.0,90256.0,0.06217159]
[1763654249392,0.02769469,90270.0,90260.0,0.0110791]
[1763654249393,0.22156701,90267.0,90260.0,0.0110791]
[1763654249690,0.02769469,90270.0,90260.0,0.0110791]
[1763654249691,0.2215644,90268.0,90262.0,0.01107885]
[1763654249894,0.00376,90270.0,90257.0,0.22158765]
[1763654250092,0.22157209,90265.0,90255.0,0.3460884]
[1763654250338,0.22158946,90257.0,90256.0,0.09605877]
[1763654250542,0.22158946,90257.0,90241.0,0.0296307]
[1763654250543,0.22158946,90257.0,90236.0,0.0296307]
[1763654250544,0.22163857,90237.0,90236.0,0.0296307]
[1763654250833,0.22163857,90237.0,90223.0,0.00334]
[1763654250835,0.22166805,90225.0,90223.0,0.00334]
[1763654251092,0.22165331,90231.0,90223.0,0.00334]
[1763654251093,0.00376,90234.0,90224.0,0.03551352]
[1763654251384,0.00376,90235.0,90225.0,0.02577374]
[1763654251591,0.22164406,90235.0,90233.0,0.01578]
[1763654251939,0.22163814,90238.0,90234.0,0.04021]
[1763654252138,0.22164103,90236.0,90234.0,0.01578]
[1763654252348,0.22164103,90236.0,90235.0,0.02451]
[1763654252553,0.57689855,90250.0,90235.0,0.02451]
[1763654252554,0.0245,90276.0,90239.0,0.01108168]
[1763654252758,0.01107996,90253.0,90237.0,0.0158]
[1763654252971,0.01107984,90254.0,90237.0,0.04031]
[1763654252972,0.22161865,90246.0,90237.0,0.04031]
[1763654253172,0.2216235,90244.0,90239.0,0.01108168]
[1763654253375,0.2216235,90244.0,90237.0,0.05139192]
[1763654253376,0.22162598,90243.0,90240.0,0.05403014]
[1763654253590,0.22161929,90245.0,90240.0,0.05403014]
[1763654253790,0.01107996,90253.0,90242.0,0.01108131]
[1763654253998,0.22161892,90246.0,90242.0,0.01108131]
[1763654254207,0.01131944,90245.0,90240.0,0.02952014]
[1763654254418,0.0002385,90245.0,90242.0,0.01108131]
[1763654254628,0.0002385,90245.0,90244.0,0.03232028]
[1763654254831,0.0002385,90245.0,90244.0,0.25394166]
[1763654255040,0.0002385,90245.0,90244.0,0.27845166]
[1763654255241,0.0002385,90245.0,90244.0,0.60145166]
[1763654256794,0.0002385,90245.0,90244.0,0.37983028]
[1763654257023,0.0002385,90245.0,90244.0,0.60145166]
[1763654257230,0.0002385,90245.0,90244.0,0.60245166]
[1763654257661,0.0110764,90282.0,90267.0,0.01107824]
[1763654257662,0.00376,90274.0,90267.0,0.01107824]
[1763654257877,0.00376,90274.0,90269.0,0.011078]
[1763654258095,0.01107603,90285.0,90273.0,0.0274]
[1763654258320,0.22154506,90276.0,90273.0,0.0274]
[1763654258528,0.01652028,90295.0,90273.0,0.0274]
[1763654258529,0.22153968,90278.0,90273.0,0.0629875]
[1763654258742,0.22153968,90278.0,90275.0,0.0158]
[1763654258743,0.22154224,90277.0,90275.0,0.0158]
[1763654258959,0.22154773,90274.0,90273.0,0.0116]
[1763654259396,0.00042048,90278.0,90273.0,0.05191]
[1763654259616,0.22154773,90274.0,90273.0,0.03611]
[1763654259818,0.22154773,90274.0,90273.0,0.04123503]
[1763654260034,0.22154773,90274.0,90273.0,0.0274]
[1763654260245,0.00042048,90278.0,90273.0,0.05191]
[1763654260486,0.00042048,90278.0,90277.0,0.0158]